bitfinex-derivatives/quotes_ETHF0:USTF0_20240930
["timestamp","ask_amount","ask_price","bid_price","bid_amount"]
[1727665233617,0.3976,2616.9,2616.5,3.51352]
[1727665233810,0.3976,2616.9,2616.6,0.30572]
[1727665234010,0.3976,2616.9,2616.5,3.51353]
[1727665234212,0.3976,2616.9,2616.6,0.30572]
[1727665236517,0.3976,2616.9,2616.5,3.2078]
[1727665236518,0.3976,2616.9,2616.7,0.30571]
[1727665237421,0.3976,2616.9,2616.5,3.2078]
[1727665237624,0.3976,2616.9,2616.7,0.30571]
[1727665238432,0.3976,2616.9,2616.2,3.2078]
[1727665238628,2.6957,2616.8,2616.3,0.30575]
[1727665239029,2.39,2616.8,2616.2,3.2078]
[1727665239224,2.39,2616.8,2616.4,0.30573]
[1727665239431,2.39,2616.8,2616.5,0.30573]
[1727665239628,2.39,2616.8,2616.4,0.30574]
[1727665239827,2.39,2616.8,2616.2,3.2078]
[1727665240132,0.3976,2616.9,2616.6,0.30572]
[1727665240825,0.3976,2616.9,2616.2,3.2078]
[1727665240826,2.39,2616.8,2616.2,3.2078]
[1727665241030,2.39,2616.8,2615.8,2.39]
[1727665241031,0.30572,2616.6,2616.1,3.2078]
[1727665241222,2.39,2616.8,2615.9,4.5222]
[1727665241223,0.3871,2616.5,2616.2,0.30576]
[1727665241422,0.7602,2616.4,2616.2,0.30576]
[1727665242726,7.64350719,2617.0,2616.6,0.30571]
[1727665242933,0.3812,2616.7,2616.6,0.30571]
[1727665243136,0.7661,2616.9,2616.4,3.6059]
[1727665243336,0.7661,2616.9,2616.8,0.3057]
[1727665243840,0.7661,2616.9,2616.6,0.30571]
[1727665244338,0.3057,2616.8,2616.4,3.51354]
[1727665244528,0.3057,2616.8,2616.4,3.2078]
[1727665244727,3.1561,2616.9,2616.2,0.30576]
[1727665244932,0.30573,2616.6,2616.1,3.2078]
[1727665245235,0.3985,2616.5,2616.3,0.30575]
[1727665245625,0.3966,2616.4,2616.3,0.30575]
[1727665246426,0.3966,2616.4,2616.3,0.30576]
[1727665247645,0.3966,2616.4,2616.1,3.2078]
[1727665247646,0.3966,2616.4,2616.2,0.30576]
[1727665248643,0.7782,2616.4,2616.2,0.30576]
[1727665249537,1.08395,2616.4,2616.1,3.2078]
[1727665250031,0.7782,2616.4,2616.1,3.2078]
[1727665250442,1.08395,2616.4,2616.1,3.2078]
[1727665250638,1.08395,2616.4,2616.1,3.51358]
[1727665250837,1.08395,2616.4,2616.1,3.2078]
[1727665251139,0.7782,2616.4,2616.0,3.2078]
[1727665251328,0.7782,2616.4,2616.1,0.30577]
[1727665251844,1.08394,2616.4,2616.1,0.30577]
[1727665252731,1.08394,2616.4,2615.8,2.7689]
[1727665252732,0.7782,2616.4,2616.0,3.2078]
[1727665252935,0.7782,2616.4,2615.6,9.7278]
[1727665253236,0.7782,2616.4,2615.8,0.30581]
[1727665253237,0.30578,2616.1,2615.8,0.30581]
[1727665253448,0.30578,2616.1,2615.6,7.3378]
[1727665253449,0.385,2616.0,2615.6,7.3378]
[1727665253638,0.401,2615.9,2615.3,0.4037]
[1727665253836,2.39,2615.8,2615.4,0.30586]
[1727665254038,2.69582,2615.8,2615.4,0.30586]
[1727665254238,2.39,2615.8,2615.2,3.2078]
[1727665254440,2.69582,2615.8,2615.4,0.30585]
[1727665255241,2.69582,2615.8,2615.2,3.2078]
[1727665255442,2.69582,2615.8,2615.5,0.30585]
[1727665255945,2.39,2615.8,2615.5,0.30585]
[1727665256132,2.39,2615.8,2615.2,3.2078]
[1727665256341,2.39,2615.8,2615.5,0.30585]
[1727665256741,2.39,2615.8,2615.4,0.30585]
[1727665257341,2.39,2615.8,2615.2,3.2078]
[1727665257551,2.69582,2615.8,2615.2,3.2078]
[1727665257844,2.39,2615.8,2615.5,0.30585]
[1727665261047,2.39,2615.8,2615.2,3.2078]
[1727665261247,2.39,2615.8,2615.3,0.30587]
[1727665261248,0.30583,2615.7,2615.3,0.30587]
[1727665261648,2.39,2615.8,2615.2,3.2078]
[1727665261847,5.5978,2615.6,2614.9,3.6177]
[1727665262046,0.3749,2615.5,2615.2,0.30587]
[1727665262247,0.3749,2615.5,2615.3,0.30587]
[1727665262248,0.3922,2615.4,2615.3,0.30587]
[1727665262550,0.3922,2615.4,2614.9,6.7725]
[1727665262551,0.3749,2615.5,2615.4,0.30586]
[1727665262746,0.3922,2615.4,2614.9,6.0077]
[1727665262950,0.8009,2615.4,2614.9,3.2078]
[1727665263151,0.8009,2615.4,2615.1,0.30589]
[1727665263349,0.8009,2615.4,2614.7,2.39]
[1727665263546,0.30589,2615.2,2614.8,0.30592]
[1727665263748,0.30589,2615.2,2614.7,0.30593]
[1727665264060,0.30589,2615.2,2614.6,3.594]
[1727665264061,0.30589,2615.2,2614.8,0.30593]
[1727665264242,5.5978,2615.3,2614.6,3.594]
[1727665264450,0.30588,2615.2,2614.8,0.30592]
[1727665264854,0.30588,2615.2,2614.6,3.594]
[1727665264855,5.5978,2615.3,2614.6,3.594]
[1727665265356,5.5978,2615.3,2615.0,0.30591]
[1727665265949,3.2078,2615.3,2615.0,0.30591]
[1727665266246,3.51368,2615.3,2614.9,0.30591]
[1727665267650,3.2078,2615.3,2614.6,3.594]
[1727665267951,0.3059,2615.1,2614.7,0.30594]
[1727665268252,0.4077,2615.0,2614.6,3.2078]
[1727665268470,0.4051,2614.9,2614.8,0.30593]
[1727665269249,0.799,2614.9,2614.8,0.30593]
[1727665269856,0.799,2614.9,2614.6,3.2078]
[1727665270046,0.799,2614.9,2614.3,3.2078]
[1727665270047,1.10493,2614.9,2614.3,3.2078]
[1727665270246,0.30593,2614.8,2614.5,0.30596]
[1727665270965,0.799,2614.9,2614.3,3.2078]
[1727665271258,2.69595,2614.7,2614.4,0.30597]
[1727665271462,5.90375,2614.7,2614.4,0.30597]
[1727665271663,0.799,2614.9,2614.2,3.2078]
[1727665271953,0.799,2614.9,2614.3,2.39]
[1727665272355,0.799,2614.9,2614.7,0.30593]
[1727665272759,0.799,2614.9,2614.6,0.30595]
[1727665273445,1.10493,2614.9,2614.5,0.30596]
[1727665273649,1.10493,2614.9,2614.3,0.30598]
[1727665273650,0.30594,2614.7,2614.3,0.30598]
[1727665273855,0.30593,2614.8,2614.4,0.30597]
[1727665274659,0.30593,2614.8,2614.2,3.2078]
[1727665274660,3.189,2614.9,2614.2,3.2078]
[1727665274864,0.30595,2614.7,2614.3,0.30598]
[1727665275269,3.49492,2614.9,2614.5,0.30596]
[1727665275456,3.189,2614.9,2614.5,0.30596]
[1727665275757,0.799,2614.9,2614.6,0.30595]
[1727665276849,1.10492,2614.9,2614.6,0.30595]
[1727665277157,0.799,2614.9,2614.6,0.30595]
[1727665277358,1.10492,2614.9,2614.5,0.30596]
[1727665277556,0.799,2614.9,2614.6,0.30595]
[1727665277760,0.799,2614.9,2614.8,0.30593]
[1727665278968,0.799,2614.9,2614.6,0.3772]
[1727665279269,0.799,2614.9,2614.7,0.30593]
[1727665279565,0.799,2614.9,2614.8,0.30593]
[1727665279958,0.799,2614.9,2614.7,0.30594]
[1727665280656,0.799,2614.9,2614.6,0.68315]
[1727665280865,0.799,2614.9,2614.8,0.30593]
[1727665281058,0.799,2614.9,2614.6,0.3772]
[1727665281261,0.799,2614.9,2614.7,0.30594]
[1727665281765,0.799,2614.9,2614.6,0.3772]
[1727665281951,0.799,2614.9,2614.8,0.30593]
[1727665282155,0.799,2614.9,2614.7,0.30594]
[1727665282356,0.799,2614.9,2614.5,3.2078]
[1727665282659,0.799,2614.9,2614.6,0.30595]
[1727665285260,1.10493,2614.9,2614.5,3.51376]
[1727665285768,0.30593,2614.8,2614.5,3.2078]
[1727665286068,0.799,2614.9,2614.7,0.30594]
[1727665286268,0.799,2614.9,2614.6,0.30595]
[1727665286862,0.799,2614.9,2614.5,3.2078]
[1727665287061,0.799,2614.9,2614.7,0.30594]
[1727665287269,0.799,2614.9,2614.8,0.30593]
[1727665288568,0.799,2614.9,2614.7,0.30594]
[1727665288760,0.799,2614.9,2614.5,3.2078]
[1727665289267,0.799,2614.9,2614.8,0.30593]
[1727665290367,0.799,2614.9,2614.5,3.2078]
[1727665290368,0.30594,2614.8,2614.5,3.2078]
[1727665290763,0.30594,2614.8,2614.4,0.30597]
[1727665290976,6.3968,2614.9,2614.1,4.5169]
[1727665291165,6.3968,2614.9,2614.2,0.30599]
[1727665291361,6.3968,2614.9,2614.1,4.5169]
[1727665291362,2.39,2614.7,2614.1,4.13]
[1727665291571,3.2078,2614.6,2614.1,4.13]
[1727665291769,3.2078,2614.6,2614.1,4.43601]
[1727665291770,0.70157,2614.5,2614.1,4.43601]
[1727665292075,0.3738,2614.4,2613.8,3.5947]
[1727665292272,0.3738,2614.4,2614.1,0.30601]
[1727665292675,0.3738,2614.4,2613.8,3.5947]
[1727665292976,0.3738,2614.4,2613.5,6.52]
[1727665292977,2.7638,2614.4,2613.5,6.52]
[1727665293161,3.2078,2614.3,2613.5,6.9285]
[1727665293364,0.306,2614.3,2613.8,0.30604]
[1727665293564,0.306,2614.3,2613.9,0.30603]
[1727665294378,5.5978,2614.1,2613.7,0.30605]
[1727665294570,2.39,2613.9,2613.6,0.30606]
[1727665294773,0.383,2613.8,2613.6,0.30606]
[1727665295371,0.383,2613.8,2613.7,0.30606]
[1727665295791,0.7941,2614.0,2613.7,3.2078]
[1727665296373,0.4071,2614.0,2613.9,0.30604]
[1727665296567,3.2078,2614.4,2613.9,6.2156]
[1727665296775,0.7884,2614.4,2614.3,0.30599]
[1727665297166,0.3756,2614.6,2614.5,0.30597]
[1727665298572,0.3756,2614.6,2614.4,0.69197]
[1727665299168,0.3756,2614.6,2614.5,0.30597]
[1727665299486,0.3756,2614.6,2614.4,0.69197]
[1727665299872,0.3756,2614.6,2614.5,0.30597]
[1727665300073,0.3756,2614.6,2614.4,0.386]
[1727665300473,0.3756,2614.6,2614.3,0.30598]
[1727665301280,0.68156,2614.6,2614.1,0.30601]
[1727665301484,0.68156,2614.6,2614.2,0.30599]
[1727665301485,0.3756,2614.6,2614.2,0.30599]
[1727665301678,0.3756,2614.6,2613.9,5.5978]
[1727665301978,0.3756,2614.6,2614.3,0.30599]
[1727665302779,0.3756,2614.6,2613.9,5.5978]
[1727665302780,2.39,2614.5,2613.9,3.2078]
[1727665303075,2.39,2614.5,2613.9,3.51383]
[1727665303279,0.306,2614.2,2613.9,3.51383]
[1727665303481,1.2027,2614.1,2613.9,3.51383]
[1727665304376,1.50871,2614.1,2613.5,4.20822876]
[1727665304585,1.50871,2614.1,2613.6,0.30607]
[1727665304885,1.50871,2614.1,2613.7,0.30605]
[1727665305276,1.2027,2614.1,2613.7,0.30605]
[1727665305475,1.2027,2614.1,2613.5,4.20822876]
[1727665305671,1.2027,2614.1,2613.6,0.30607]
[1727665305672,0.30604,2613.9,2613.6,0.30607]
[1727665306377,0.30604,2613.9,2613.5,4.20822876]
[1727665306378,3.2078,2614.0,2613.5,4.20822876]
[1727665306578,3.2078,2614.0,2613.7,0.30605]
[1727665306579,3.51383,2614.0,2613.7,0.30605]
[1727665306771,3.2078,2614.0,2613.7,0.30605]
[1727665307491,3.89872,2614.1,2613.7,0.30605]
[1727665307789,7.10652,2614.1,2613.7,0.30605]
[1727665308693,7.10652,2614.1,2613.4,3.2078]
[1727665308694,0.30603,2614.0,2613.6,0.30607]
[1727665308871,6.8005,2614.1,2613.7,0.30606]
[1727665308872,7.10652,2614.1,2613.7,0.30606]
[1727665309182,6.8005,2614.1,2613.5,0.30608]
[1727665309386,2.69604,2613.9,2613.5,0.30608]
[1727665310386,2.39,2613.9,2613.6,0.30607]
[1727665310583,2.69604,2613.9,2613.5,0.30608]
[1727665312788,2.69604,2613.9,2613.5,0.30607]
[1727665313175,2.69604,2613.9,2613.1,0.3836]
[1727665313498,2.39,2613.9,2613.6,0.30607]
[1727665313986,2.39,2613.9,2613.7,0.30606]
[1727665314188,2.39,2613.9,2613.6,0.30607]
[1727665314483,0.30605,2613.8,2613.5,0.30608]
[1727665314781,0.30605,2613.8,2613.4,0.30608]
[1727665314980,0.391,2613.7,2613.5,0.30608]
[1727665315187,0.7607,2613.6,2613.5,0.30608]
[1727665316789,0.7607,2613.6,2613.1,0.3836]
[1727665316985,3.1507,2613.6,2613.1,0.3836]
[1727665317282,3.1507,2613.6,2613.5,0.30608]
[1727665317884,3.1507,2613.6,2613.1,0.3836]
[1727665318190,3.1507,2613.6,2613.5,0.30608]
[1727665318191,0.7607,2613.6,2613.5,0.30608]
[1727665318386,0.391,2613.7,2613.3,5.5978]
[1727665318576,0.391,2613.7,2613.6,0.30607]
[1727665318979,3.1854,2614.1,2613.4,0.093]
[1727665319187,0.3753,2614.0,2613.9,0.30603]
[1727665319682,4.2009,2614.0,2613.9,0.30603]
[1727665319881,4.2009,2614.0,2613.4,0.85824]
[1727665319882,4.2009,2614.0,2613.8,0.30604]
[1727665320082,0.3753,2614.0,2613.8,0.30604]
[1727665320282,0.3753,2614.0,2613.9,0.30604]
[1727665320484,0.3753,2614.0,2613.8,0.30604]
[1727665321288,0.3753,2614.0,2613.4,0.093]
[1727665321588,0.3753,2614.0,2613.8,0.30604]
[1727665321798,0.3753,2614.0,2613.5,2.39]
[1727665322090,3.2078,2614.7,2613.9,2.39]
[1727665322287,1.1689,2614.6,2614.4,0.30597]
[1727665322684,1.1689,2614.6,2614.3,3.2078]
[1727665322889,3.2078,2615.0,2614.3,3.2078]
[1727665323204,3.2078,2615.0,2614.1,0.6535]
[1727665323205,1.1588,2614.9,2614.8,0.30593]
[1727665323490,5.5978,2615.9,2614.8,2.39]
[1727665323683,0.403,2615.6,2615.2,0.30587]
[1727665323884,0.403,2615.6,2614.9,3.2078]
[1727665324183,0.403,2615.6,2614.9,0.30591]
[1727665324184,3.6108,2615.6,2614.9,0.30591]
[1727665324387,2.39,2615.4,2614.7,0.5021]
[1727665324584,3.2078,2615.3,2614.7,0.4091]
[1727665324896,2.7657,2615.2,2614.7,0.30593]
[1727665325190,2.7657,2615.2,2614.6,3.2078]
[1727665325191,0.403,2615.1,2614.8,0.30593]
[1727665325396,0.403,2615.1,2614.6,3.2078]
[1727665325688,0.403,2615.1,2614.6,3.51375]
[1727665325887,0.7089,2615.1,2614.6,3.51375]
[1727665326092,0.403,2615.1,2614.7,0.30594]
[1727665326690,0.403,2615.1,2614.5,3.2078]
[1727665326887,0.403,2615.1,2614.7,0.30594]
[1727665327195,0.403,2615.1,2614.6,3.51375]
[1727665327489,0.403,2615.1,2614.6,3.2078]
[1727665327696,0.403,2615.1,2614.7,0.30594]
[1727665327892,0.70891,2615.1,2614.6,3.51375]
[1727665328787,0.30592,2614.9,2614.3,0.4091]
[1727665328987,5.90371,2615.0,2614.5,0.30596]
[1727665329188,5.5978,2615.0,2614.4,0.30597]
[1727665329491,2.39,2614.8,2614.4,0.30597]
[1727665329690,0.3844,2614.7,2614.4,0.30597]
[1727665329886,0.3932,2614.6,2614.4,0.30597]
[1727665330798,0.3932,2614.6,2614.1,3.2078]
[1727665330998,0.3932,2614.6,2614.4,0.30597]
[1727665331491,0.3932,2614.6,2614.5,0.30597]
[1727665332198,0.3932,2614.6,2614.1,3.2078]
[1727665332400,0.3932,2614.6,2614.4,0.30597]
[1727665333000,0.3932,2614.6,2614.5,0.30597]
[1727665333402,0.3932,2614.6,2614.4,0.30597]
[1727665333806,6.7061573,2615.0,2614.5,0.30597]
[1727665334098,3.2078,2615.0,2614.9,0.30592]
[1727665334898,3.2078,2615.0,2614.5,0.3972]
[1727665334899,1.1619,2615.3,2614.7,5.5978]
[1727665335093,1.1619,2615.3,2615.1,0.30589]
[1727665335295,1.1619,2615.3,2614.7,5.5978]
[1727665335593,1.1619,2615.3,2615.1,0.30589]
[1727665335794,1.1619,2615.3,2615.2,0.30588]
[1727665336013,1.1619,2615.3,2614.8,0.0928]
[1727665336205,1.1619,2615.3,2615.1,0.30589]
[1727665336700,3.2078,2615.5,2614.8,0.0928]
[1727665336898,3.2078,2615.5,2615.3,0.30587]
[1727665337493,3.2078,2615.5,2615.2,0.30588]
[1727665337694,3.2078,2615.5,2615.0,3.2078]
[1727665337894,3.2078,2615.5,2615.3,0.30587]
[1727665338401,1.138,2615.6,2615.0,3.2078]
[1727665338607,3.4983573,2615.9,2615.3,3.2078]
[1727665338792,0.3843,2615.9,2615.8,0.30581]
[1727665338998,3.4983573,2616.4,2616.2,0.30577]
[1727665339195,7.18193306,2616.6,2616.1,2.39]
[1727665339196,3.2078,2616.6,2616.1,2.39]
[1727665339398,3.2078,2616.6,2616.2,0.30576]
[1727665339596,3.2078,2616.6,2616.0,0.30578]
[1727665339897,3.2078,2616.6,2615.9,5.5978]
[1727665340292,3.2078,2616.6,2616.3,0.30575]
[1727665340496,3.2078,2616.6,2616.1,2.39]
[1727665340497,3.2078,2616.6,2616.2,0.30576]
[1727665341695,3.2078,2616.6,2616.1,0.30577]
[1727665342405,3.2078,2616.6,2616.2,0.30577]
[1727665342899,3.2078,2616.6,2615.9,5.5978]
[1727665343100,3.2078,2616.6,2616.1,0.30577]
[1727665343292,3.2078,2616.6,2615.9,5.5978]
[1727665343512,3.2078,2616.6,2616.2,0.30576]
[1727665344016,3.2078,2616.6,2616.1,0.30577]
[1727665344199,5.90352,2616.6,2616.1,0.30577]
[1727665344401,5.5978,2616.6,2616.1,0.30577]
[1727665344702,5.5978,2616.6,2615.7,0.395]
[1727665344703,2.69575,2616.4,2615.8,0.3058]
[1727665344997,2.69575,2616.4,2615.9,0.3058]
[1727665344998,3.2078,2616.3,2615.9,0.3058]
[1727665346007,2.39,2616.2,2615.5,3.2078]
[1727665346197,0.7878,2616.1,2615.7,0.30582]
[1727665346403,1.1861,2616.1,2615.7,0.30582]
[1727665346908,1.1861,2616.1,2615.6,0.30583]
[1727665347226,1.1861,2616.1,2615.3,3.5888]
[1727665347227,5.5978,2616.0,2615.3,3.5888]
[1727665347405,5.5978,2616.0,2615.6,0.30583]
[1727665349209,5.5978,2616.0,2615.3,3.2078]
[1727665349703,0.30581,2615.9,2615.4,0.30585]
[1727665350508,5.5978,2616.0,2615.3,3.2078]
[1727665350702,0.30582,2615.8,2615.3,3.2078]
[1727665350903,0.30582,2615.8,2615.4,0.30586]
[1727665351811,5.5978,2616.0,2615.0,6.0667]
[1727665352110,1.1861,2616.1,2615.3,0.30587]
[1727665352111,3.51363,2615.7,2615.3,0.30587]
[1727665352312,3.51363,2615.7,2615.0,5.9743]
[1727665352313,0.3748,2615.6,2615.2,0.30588]
[1727665352613,0.7826,2615.5,2615.2,0.30588]
[1727665353116,0.7826,2615.5,2615.3,0.30587]
[1727665353413,0.7826,2615.5,2615.0,3.5843]
[1727665353610,0.7826,2615.5,2615.4,0.30586]
[1727665353812,0.7826,2615.5,2615.0,5.9743]
[1727665354119,0.7826,2615.5,2615.3,0.30586]
[1727665355912,0.7826,2615.5,2615.4,0.30586]
[1727665356101,0.4027,2615.5,2615.4,0.30586]
[1727665356305,0.3748,2615.6,2615.5,0.30585]
[1727665356706,3.2078,2615.7,2615.6,0.30584]
[1727665358110,3.2078,2615.7,2615.6,1.62134584]
[1727665358311,2.25143161,2615.7,2615.6,0.43850194]
[1727665358519,2.25143161,2615.7,2615.6,0.74434194]
[1727665358808,2.25143161,2615.7,2615.6,0.43850194]
[1727665359003,1.1731,2615.9,2615.6,0.43850194]
[1727665359205,1.1731,2615.9,2615.8,0.30581]
[1727665359417,0.7632,2615.9,2615.8,0.30581]
[1727665362418,0.7632,2615.9,2615.6,1.32226781]
[1727665362618,0.7632,2615.9,2615.5,0.4051]
[1727665363016,0.7632,2615.9,2615.8,0.30581]
[1727665363220,0.7632,2615.9,2615.4,0.471074]
[1727665363523,3.971,2615.9,2615.3,3.58249355]
[1727665363817,3.971,2615.9,2615.8,0.30581]
[1727665364314,3.971,2615.9,2615.2,4.72156312]
[1727665364515,3.971,2615.9,2615.8,0.30581]
[1727665365119,3.971,2615.9,2615.4,0.76464]
[1727665365322,0.3872,2616.2,2615.8,2.39]
[1727665365620,0.3872,2616.2,2616.1,0.30578]
[1727665369217,3.6062,2616.3,2616.2,0.30577]
[1727665369417,3.2078,2616.3,2616.2,0.30577]
[1727665370214,3.2078,2616.3,2616.2,4.12817]
[1727665370626,3.2078,2616.3,2616.2,3.8224]
[1727665370922,3.2078,2616.3,2616.2,4.12817]
[1727665371316,3.2078,2616.3,2616.2,0.30577]
[1727665371528,3.2078,2616.3,2616.0,2.39]
[1727665371733,3.2078,2616.3,2616.2,0.30577]
[1727665372020,3.2078,2616.3,2615.9,0.30579]
[1727665372021,3.51356,2616.3,2615.9,0.30579]
[1727665372221,3.2078,2616.3,2615.8,0.30581]
[1727665372427,3.2078,2616.0,2615.7,0.30583]
[1727665372626,0.3722,2615.9,2615.7,0.30582]
[1727665372819,1.129,2615.9,2615.7,0.30582]
[1727665373220,1.129,2615.9,2615.6,2.39]
[1727665373418,1.129,2615.9,2615.7,0.30582]
[1727665373717,1.129,2615.9,2615.6,2.39]
[1727665373918,1.129,2615.9,2615.6,2.69583]
[1727665374124,1.129,2615.9,2615.6,0.30584]
[1727665374125,3.2078,2615.7,2615.6,0.30584]
[1727665377128,3.2078,2615.7,2615.2,4.13]
[1727665377330,3.2078,2615.7,2614.9,2.39]
[1727665377527,3.51363,2615.7,2615.4,0.30585]
[1727665378229,5.90363,2615.7,2615.3,0.30587]
[1727665378428,3.2078,2615.4,2615.3,0.30587]
[1727665380027,3.2078,2615.4,2615.2,0.30588]
[1727665380230,1.1469,2615.3,2614.8,4.13]
[1727665380435,3.2078,2615.1,2614.8,4.13]
[1727665380731,0.7747,2615.3,2615.2,0.30588]
[1727665381424,3.2078,2615.5,2615.2,6.214]
[1727665381628,3.2078,2615.5,2615.4,0.30586]
[1727665381826,3.2078,2615.5,2615.2,2.39]
[1727665381827,3.9808,2615.8,2615.2,2.39]
[1727665382028,3.9808,2615.8,2615.7,0.30583]
[1727665383324,3.2078,2615.8,2615.7,4.12903]
[1727665383521,3.2078,2615.8,2615.7,10.12903]
[1727665384725,3.2078,2616.2,2615.7,9.8232]
[1727665385035,3.2078,2616.2,2616.1,0.30577]
[1727665386534,3.2078,2616.2,2616.0,0.30578]
[1727665386836,3.2078,2616.2,2616.1,0.30578]
[1727665388234,3.2078,2616.2,2616.1,6.51818]
[1727665388735,4.3972,2616.5,2616.1,6.2124]
[1727665388935,4.3972,2616.5,2616.1,2.39]
[1727665389136,4.3972,2616.5,2616.4,0.30574]
[1727665389531,0.7981,2616.5,2616.4,4.12734]
[1727665389734,3.2078,2616.8,2616.7,0.30571]
[1727665389735,0.7652,2616.8,2616.7,0.30571]
[1727665390627,0.3903,2616.8,2616.7,4.12731]
[1727665392328,0.4008,2617.1,2617.0,0.30567]
[1727665392537,0.4022,2617.1,2617.0,2.69567]
[1727665392839,0.4022,2617.1,2617.0,6.51647]
[1727665394040,0.4022,2617.1,2617.0,2.39]
[1727665394247,0.4022,2617.1,2617.0,6.51647]
[1727665394439,0.4022,2617.1,2617.0,4.12647]
[1727665394633,0.4022,2617.1,2617.0,0.30567]
[1727665394945,0.4022,2617.1,2617.0,4.12647]
[1727665395739,0.4022,2617.1,2617.0,0.30567]
[1727665397331,3.2078,2617.4,2617.0,3.8208]
[1727665397531,3.2078,2617.4,2616.7,3.39869821]
[1727665397532,3.5977,2617.4,2617.3,0.30564]
[1727665398645,3.5977,2617.4,2617.2,0.30564]
[1727665398832,3.5977,2617.4,2617.1,0.30565]
[1727665399143,3.5977,2617.4,2616.9,2.39]
[1727665399144,3.5977,2617.4,2617.2,0.30565]
[1727665399342,3.5977,2617.4,2617.2,0.30564]
[1727665399743,3.5977,2617.4,2617.3,0.30564]
[1727665401547,3.5977,2617.4,2617.1,0.30565]
[1727665402239,3.5977,2617.4,2617.2,0.30565]
[1727665402749,3.5977,2617.4,2616.8,6.8009549]
[1727665402947,3.5977,2617.4,2616.9,0.30568]
[1727665403149,3.5977,2617.4,2617.1,0.30566]
[1727665403353,3.5977,2617.4,2616.8,6.8009549]
[1727665403561,3.5977,2617.4,2617.2,0.30565]
[1727665404451,3.5977,2617.4,2616.8,2.39]
[1727665404652,3.5977,2617.4,2616.7,0.3057]
[1727665404653,3.2078,2617.1,2616.7,0.3057]
[1727665404839,3.2078,2616.8,2616.7,0.3057]
[1727665405647,0.3847,2616.9,2616.8,0.3057]
[1727665407255,0.3847,2616.9,2616.8,6.5173]
[1727665408352,0.3811,2617.0,2616.9,0.30568]
[1727665408852,3.9862,2617.4,2616.9,3.8216]
[1727665409050,3.9862,2617.4,2616.6,1.01098]
[1727665409051,3.9862,2617.4,2617.2,0.30564]
[1727665409458,3.9862,2617.4,2617.0,2.39]
[1727665409855,0.7784,2617.4,2617.3,0.30564]
[1727665411154,0.3723,2617.6,2617.2,2.39]
[1727665411358,0.3749,2617.5,2617.4,2.69563]
[1727665411855,0.3749,2617.5,2617.4,12.51643]
[1727665414554,0.3749,2617.5,2617.4,6.51643]
[1727665414757,0.3749,2617.5,2617.4,12.51643]
[1727665414957,0.3749,2617.5,2617.4,6.51643]
[1727665416467,0.3749,2617.5,2617.4,0.30563]
[1727665420162,0.3749,2617.5,2617.0,2.39]
[1727665420360,0.3749,2617.5,2617.1,0.30565]
[1727665420361,3.2078,2617.4,2617.1,0.30565]
[1727665421360,3.2078,2617.4,2617.2,0.30564]
[1727665421555,3.2078,2617.4,2616.7,4.13]
[1727665421556,5.5978,2617.4,2616.7,4.13]
[1727665421762,3.2078,2617.1,2616.7,4.13]
[1727665421963,3.2078,2616.8,2616.4,0.30574]
[1727665422158,3.2078,2616.8,2616.5,0.30573]
[1727665422358,3.2078,2616.8,2616.3,2.39]
[1727665422560,3.2078,2616.8,2616.4,0.30574]
[1727665422865,3.2078,2616.8,2616.3,2.39]
[1727665423067,3.2078,2616.8,2616.7,2.69571]
[1727665423262,4.3814,2617.0,2616.9,0.30568]
[1727665423465,1.1736,2617.0,2616.9,0.30568]
[1727665424163,1.1736,2617.0,2616.8,0.30569]
[1727665424762,1.1736,2617.0,2616.7,2.39]
[1727665424961,1.1736,2617.0,2616.9,0.30568]
[1727665425366,1.1736,2617.0,2616.8,0.30569]
[1727665426270,1.1736,2617.0,2616.9,0.30568]
[1727665426659,1.1736,2617.0,2616.8,0.30569]
[1727665426856,1.1736,2617.0,2616.9,2.69568]
[1727665427061,0.7747,2617.0,2616.9,2.69568]
[1727665427265,0.7747,2617.0,2616.9,6.51728]
[1727665427467,0.7747,2617.0,2616.9,2.69568]
[1727665427658,0.7747,2617.0,2616.9,6.51728]
[1727665428067,0.7747,2617.0,2616.9,2.69568]
[1727665431077,0.3882,2617.0,2616.9,2.69568]
[1727665431264,3.2078,2617.1,2616.9,2.39]
[1727665431461,3.2078,2617.1,2617.0,0.30567]
[1727665432968,0.7934,2617.3,2616.9,2.39]
[1727665433279,0.7934,2617.3,2617.2,0.30565]
[1727665434175,4.0012,2617.3,2617.2,0.30565]
[1727665434569,0.7934,2617.3,2617.2,0.30565]
[1727665434874,0.7934,2617.3,2617.2,4.12645]
[1727665437971,0.397,2617.3,2617.2,4.12645]
[1727665438170,0.4052,2617.4,2617.3,0.30564]
[1727665438370,0.4052,2617.4,2617.3,2.69564]
[1727665438565,0.4052,2617.4,2617.3,6.51644]
[1727665438873,0.4052,2617.4,2617.3,2.69564]
[1727665439078,0.4052,2617.4,2617.3,6.51644]
[1727665439379,0.4052,2617.4,2617.3,2.69564]
[1727665439770,0.3723,2617.5,2617.4,0.30563]
[1727665440481,0.3723,2617.5,2617.3,2.69563]
[1727665440671,0.3699,2617.4,2617.3,2.69563]